bitfinex-derivatives/quotes_BTCF0:USTF0_20230901
["timestamp","ask_amount","ask_price","bid_price","bid_amount"]
[1693586236430,1.10414838,25895.0,25894.0,1.42323759]
[1693586236928,1.0476,25895.0,25894.0,1.46507374]
[1693586237623,1.10414838,25895.0,25894.0,1.42323759]
[1693586238130,1.10414838,25895.0,25894.0,1.46507374]
[1693586238131,1.0476,25895.0,25894.0,1.46507374]
[1693586240132,2.2476,25895.0,25894.0,1.42323759]
[1693586240338,2.2476,25895.0,25894.0,1.46507374]
[1693586241134,2.2476,25895.0,25894.0,1.42323759]
[1693586241924,1.0476,25895.0,25894.0,1.46507374]
[1693586244529,2.30414838,25895.0,25894.0,1.42323759]
[1693586245132,2.35883745,25895.0,25894.0,1.42323759]
[1693586246938,2.95883745,25895.0,25894.0,1.42323759]
[1693586250253,1.2,25892.0,25890.0,1.5343671]
[1693586250453,0.4175,25891.0,25890.0,1.5343671]
[1693586250857,0.42136,25891.0,25890.0,1.5343671]
[1693586251057,0.47790838,25891.0,25890.0,1.5343671]
[1693586251451,0.47404838,25891.0,25890.0,1.5343671]
[1693586251656,0.52873745,25891.0,25890.0,1.5343671]
[1693586252156,0.53273745,25891.0,25890.0,1.5343671]
[1693586252662,0.53673745,25891.0,25890.0,1.5343671]
[1693586252962,0.56059745,25891.0,25890.0,0.0643671]
[1693586253159,0.54059745,25891.0,25890.0,0.0643671]
[1693586253461,0.56059745,25891.0,25890.0,0.0643671]
[1693586253850,0.54059745,25891.0,25890.0,0.0643671]
[1693586254159,0.56059745,25891.0,25890.0,0.0643671]
[1693586254561,0.54059745,25891.0,25890.0,0.0643671]
[1693586254751,0.56059745,25891.0,25890.0,0.0643671]
[1693586256158,0.44936,25891.0,25890.0,0.10620325]
[1693586256367,0.4255,25891.0,25890.0,0.10620325]
[1693586256862,0.4255,25891.0,25890.0,0.12620325]
[1693586257566,0.4255,25891.0,25890.0,0.0643671]
[1693586258063,0.53673745,25891.0,25890.0,0.0643671]
[1693586258262,0.48204838,25891.0,25890.0,0.0643671]
[1693586259363,0.53673745,25891.0,25890.0,0.0643671]
[1693586259563,0.48204838,25891.0,25890.0,0.0643671]
[1693586260455,0.4255,25891.0,25890.0,0.0643671]
[1693586260662,0.4255,25891.0,25890.0,0.0843671]
[1693586261065,0.4255,25891.0,25890.0,0.12620325]
[1693586262373,0.48018907,25891.0,25890.0,0.0643671]
[1693586262671,0.4255,25891.0,25890.0,0.0643671]
[1693586263770,0.48204838,25891.0,25890.0,0.0643671]
[1693586263971,0.53673745,25891.0,25890.0,0.0643671]
[1693586265777,0.48204838,25891.0,25890.0,0.0643671]
[1693586266174,0.42936,25891.0,25890.0,0.0643671]
[1693586266367,0.42936,25891.0,25890.0,0.10620325]
[1693586266961,0.4255,25891.0,25890.0,0.10620325]
[1693586267173,0.4255,25891.0,25890.0,0.22096007]
[1693586272479,0.4255,25891.0,25890.0,0.24096007]
[1693586272678,0.4255,25891.0,25890.0,0.12620325]
[1693586272880,0.4255,25891.0,25890.0,0.24096007]
[1693586273281,0.4255,25891.0,25890.0,0.12620325]
[1693586275589,0.48204838,25891.0,25890.0,0.0843671]
[1693586276081,0.4255,25891.0,25890.0,0.0843671]
[1693586276586,0.4255,25891.0,25890.0,0.54370325]
[1693586276587,0.008,25891.0,25890.0,0.54370325]
[1693586277987,0.4255,25891.0,25890.0,0.12620325]
[1693586278887,0.4255,25891.0,25890.0,0.10620325]
[1693586279100,0.4255,25891.0,25890.0,0.0643671]
[1693586279682,0.61750444,25891.0,25890.0,0.10620325]
[1693586281289,0.4255,25891.0,25890.0,0.34791352]
[1693586281688,0.4255,25891.0,25890.0,0.30607737]
[1693586284088,0.48204838,25891.0,25890.0,0.30607737]
[1693586287297,0.4255,25891.0,25890.0,0.34791352]
[1693586288294,0.4255,25891.0,25890.0,0.10620325]
[1693586288485,0.48204838,25891.0,25890.0,0.0643671]
[1693586289100,0.67516731,25891.0,25890.0,0.0643671]
[1693586290194,0.50204838,25891.0,25890.0,0.0643671]
[1693586290897,0.69519086,25891.0,25890.0,0.0643671]
[1693586291497,0.74987993,25891.0,25890.0,0.0643671]
[1693586292200,0.69519086,25891.0,25890.0,0.0643671]
[1693586292390,0.67519086,25891.0,25890.0,0.0643671]
[1693586292798,0.69519086,25891.0,25890.0,0.0643671]
[1693586293308,0.95209086,25891.0,25890.0,0.0643671]
[1693586293592,0.75894838,25891.0,25890.0,0.0643671]
[1693586293991,0.81363745,25891.0,25890.0,0.0643671]
[1693586294195,0.95212314,25891.0,25890.0,0.10620325]
[1693586294391,0.89557476,25891.0,25890.0,0.10620325]
[1693586294595,0.87557476,25891.0,25890.0,0.10620325]
[1693586294901,0.89557476,25891.0,25890.0,0.0643671]
[1693586295290,0.75894838,25891.0,25890.0,0.0643671]
[1693586296196,0.81363745,25891.0,25890.0,0.0643671]
[1693586296397,0.81749745,25891.0,25890.0,0.0643671]
[1693586296703,0.3,25885.0,25884.0,0.00012]
[1693586296888,0.7375,25885.0,25883.0,0.81674612]
[1693586297096,0.72164838,25884.0,25883.0,0.81674612]
[1693586297296,0.77633745,25884.0,25883.0,0.81674612]
[1693586297512,0.2476,25884.0,25883.0,1.25424612]
[1693586297803,0.19293852,25884.0,25883.0,1.25424612]
[1693586297997,0.006,25885.0,25883.0,1.25424612]
[1693586297998,0.011,25885.0,25883.0,1.29608227]
[1693586298197,0.011,25885.0,25884.0,0.4175]
[1693586298397,0.011,25885.0,25884.0,0.4375]
[1693586298599,0.011,25885.0,25884.0,0.47933615]
[1693586299397,0.005,25885.0,25884.0,0.47933615]
[1693586300406,0.004,25885.0,25884.0,0.47933615]
[1693586300905,0.008,25885.0,25884.0,0.47933615]
[1693586302400,0.004,25885.0,25884.0,0.47933615]
[1693586302690,0.008,25885.0,25884.0,0.47933615]
[1693586303298,0.008,25885.0,25884.0,0.55624724]
[1693586303498,0.008,25885.0,25884.0,0.47933615]
[1693586303702,0.008,25885.0,25884.0,0.72108335]
[1693586308411,0.008,25885.0,25884.0,0.79809996]
[1693586308610,0.008,25885.0,25884.0,0.72108335]
[1693586308811,0.008,25885.0,25884.0,0.79809289]
[1693586310314,0.008,25885.0,25884.0,0.72108335]
[1693586313722,0.008,25885.0,25884.0,1.69135096]
[1693586313918,0.2342,25892.0,25886.0,0.3]
[1693586313919,0.19282171,25891.0,25886.0,0.3]
[1693586314115,0.42702171,25892.0,25890.0,0.7175]
[1693586314324,0.19668171,25895.0,25891.0,0.45933615]
[1693586314622,0.19282171,25896.0,25894.0,0.7175]
[1693586314924,0.0914,25897.0,25895.0,0.4175]
[1693586315126,0.0914,25897.0,25896.0,0.4175]
[1693586315325,0.0914,25897.0,25896.0,0.45933615]
[1693586316124,0.0934,25897.0,25896.0,0.45933615]
[1693586317320,0.0964,25897.0,25896.0,0.48833615]
[1693586317928,0.0974,25897.0,25896.0,0.51633615]
[1693586321831,0.1174,25897.0,25896.0,0.4745]
[1693586322025,0.1174,25897.0,25896.0,0.51633615]
[1693586322225,0.026,25897.0,25896.0,0.51633615]
[1693586325831,0.006,25897.0,25896.0,0.51633615]
[1693586326137,0.026,25897.0,25896.0,0.51633615]
[1693586331642,0.026,25897.0,25896.0,0.4745]
[1693586332139,0.08254838,25897.0,25896.0,0.4745]
[1693586332737,0.026,25897.0,25896.0,0.4745]
[1693586333935,0.026,25897.0,25896.0,0.51633615]
[1693586343343,0.006,25897.0,25896.0,0.51633615]
[1693586343554,0.026,25897.0,25896.0,0.51633615]
[1693586343938,0.006,25897.0,25896.0,0.51633615]
[1693586344143,0.026,25897.0,25896.0,0.51633615]
[1693586344547,0.006,25897.0,25896.0,0.51633615]
[1693586344946,0.006,25897.0,25896.0,0.59333442]
[1693586345152,0.006,25897.0,25896.0,0.51633615]
[1693586347448,0.006,25897.0,25896.0,0.59313202]
[1693586347846,0.006,25897.0,25896.0,0.51633615]
[1693586348045,0.006,25897.0,25896.0,0.59314634]
[1693586348843,0.006,25897.0,25896.0,0.51633615]
[1693586350544,0.08254838,25897.0,25896.0,0.4745]
[1693586351046,0.026,25897.0,25896.0,0.4745]
[1693586351952,0.50004838,25897.0,25896.0,0.057]
[1693586352150,0.80004838,25897.0,25889.0,0.4175]
[1693586352455,0.4175,25891.0,25889.0,0.4175]
[1693586352758,0.00386,25890.0,25889.0,0.4175]
[1693586352949,0.4375,25890.0,25887.0,0.07681019]
[1693586353255,0.42136,25888.0,25886.0,0.4175]
[1693586353453,0.00386,25887.0,25886.0,0.4175]
[1693586353751,0.06040838,25887.0,25886.0,0.4175]
[1693586353949,0.05654838,25887.0,25886.0,0.4175]
[1693586354155,0.4175,25888.0,25887.0,0.008]
[1693586354849,0.47790838,25888.0,25887.0,0.008]
[1693586355355,0.49490838,25888.0,25887.0,0.009]
[1693586355743,0.43836,25888.0,25887.0,0.001]
[1693586356151,0.43836,25888.0,25887.0,0.11649741]
[1693586356351,0.43836,25888.0,25887.0,0.15833356]
[1693586356550,0.45736,25888.0,25887.0,0.15933356]
[1693586356852,0.45736,25888.0,25887.0,0.04383615]
[1693586357050,0.02286,25888.0,25887.0,0.46133615]
[1693586357260,0.03986,25888.0,25887.0,0.46133615]
[1693586357560,0.53390838,25888.0,25887.0,0.002]
[1693586358058,0.53390838,25888.0,25887.0,0.07891322]
[1693586359662,0.58859745,25888.0,25887.0,0.07891322]
[1693586359863,0.53390838,25888.0,25887.0,0.07891322]
[1693586361563,0.58859745,25888.0,25887.0,0.07891322]
[1693586362467,0.47736,25888.0,25887.0,0.07891322]
[1693586362859,0.47736,25888.0,25887.0,0.002]
[1693586363056,0.05986,25888.0,25887.0,0.4195]
[1693586363363,0.03986,25888.0,25887.0,0.4195]
[1693586363562,0.03986,25888.0,25887.0,0.46133615]
[1693586365766,0.09640838,25888.0,25887.0,0.41932833]
[1693586366169,0.036,25888.0,25887.0,0.46116448]
[1693586366366,0.036,25888.0,25887.0,0.48116448]
[1693586370970,0.036,25888.0,25887.0,0.46116448]
[1693586371181,0.47736,25888.0,25887.0,0.00182833]
[1693586371672,0.58859745,25888.0,25887.0,0.00182833]
[1693586377975,0.036,25888.0,25887.0,0.41932833]
[1693586378178,0.036,25888.0,25887.0,0.5161776]
[1693586378372,0.036,25888.0,25887.0,0.55801375]
[1693586379474,0.017,25888.0,25887.0,0.55718542]
[1693586379780,0.017,25888.0,25887.0,0.48133615]
[1693586379781,0.023,25888.0,25887.0,0.48133615]
[1693586379986,0.02686,25888.0,25887.0,0.48133615]
[1693586380176,0.02686,25888.0,25887.0,0.4195]
[1693586380683,0.01486,25888.0,25887.0,0.4195]
[1693586381270,0.01486,25888.0,25887.0,0.46133615]
[1693586382577,0.01486,25888.0,25887.0,0.4195]
[1693586383283,0.07140838,25888.0,25887.0,0.4195]
[1693586383975,0.01486,25888.0,25887.0,0.4195]
[1693586384184,0.01486,25888.0,25887.0,0.46133615]
[1693586384784,0.011,25888.0,25887.0,0.53818542]
[1693586386184,0.011,25888.0,25887.0,0.46133615]
[1693586386387,0.01486,25888.0,25887.0,0.46133615]
[1693586386680,0.43236,25888.0,25887.0,0.002]
[1693586387086,0.54359745,25888.0,25887.0,0.002]
[1693586391382,0.56359745,25888.0,25887.0,0.002]
[1693586392687,0.43236,25888.0,25887.0,0.002]
[1693586393282,0.4285,25888.0,25887.0,0.04383615]
[1693586394186,0.4285,25888.0,25887.0,0.12068542]
[1693586395585,0.4285,25888.0,25887.0,0.07884927]
[1693586395898,0.48504838,25888.0,25887.0,0.07884927]
[1693586397094,0.54359745,25888.0,25887.0,0.07884927]
[1693586399694,0.48890838,25888.0,25887.0,0.07884927]
[1693586400095,0.48890838,25888.0,25887.0,0.002]
[1693586400394,0.54359745,25888.0,25887.0,0.07884927]
[1693586400695,0.48890838,25888.0,25887.0,0.002]
[1693586401081,0.43236,25888.0,25887.0,0.07884927]
[1693586401288,0.4285,25888.0,25887.0,0.09884927]
[1693586401490,0.4285,25888.0,25887.0,0.53818542]
[1693586401686,0.4285,25888.0,25887.0,0.55818542]
[1693586402594,0.4285,25888.0,25887.0,0.48133615]
[1693586403191,0.4285,25888.0,25887.0,0.55846711]
[1693586404194,0.53973745,25888.0,25887.0,0.022]
[1693586404396,0.54359745,25888.0,25887.0,0.022]
[1693586404700,0.48890838,25888.0,25887.0,0.002]
[1693586404891,0.48890838,25888.0,25887.0,0.022]
[1693586406792,0.48890838,25888.0,25887.0,0.002]
[1693586406999,0.43236,25888.0,25887.0,0.002]
[1693586407697,0.43236,25888.0,25887.0,0.04383615]
[1693586408099,0.4285,25888.0,25887.0,0.04383615]
[1693586413093,0.4285,25888.0,25887.0,0.002]
[1693586413292,0.48504838,25888.0,25887.0,0.002]
[1693586414305,0.4285,25888.0,25887.0,0.002]
[1693586414800,0.4285,25888.0,25887.0,0.04383615]
[1693586415697,0.48504838,25888.0,25887.0,0.002]
[1693586417308,0.48890838,25888.0,25887.0,0.002]
[1693586417703,0.54359745,25888.0,25887.0,0.002]
[1693586418005,0.48890838,25888.0,25887.0,0.002]
[1693586420511,0.54359745,25888.0,25887.0,0.002]
[1693586420809,0.48890838,25888.0,25887.0,0.002]
[1693586421113,0.54359745,25888.0,25887.0,0.002]
[1693586421519,0.48890838,25888.0,25887.0,0.002]
[1693586421819,0.54359745,25888.0,25887.0,0.002]
[1693586423718,0.56359745,25888.0,25887.0,0.002]
[1693586425117,0.50890838,25888.0,25887.0,0.002]
[1693586425616,0.54359745,25888.0,25887.0,0.002]
[1693586425815,0.56359745,25888.0,25887.0,0.002]
[1693586426017,0.50890838,25888.0,25887.0,0.002]
[1693586426715,0.48890838,25888.0,25887.0,0.002]
[1693586427422,0.54359745,25888.0,25887.0,0.002]
[1693586429920,0.56359745,25888.0,25887.0,0.002]
[1693586430110,1.39453915,25888.0,25887.0,0.002]
[1693586430314,1.39453915,25888.0,25883.0,0.81674612]
[1693586430315,0.00386,25886.0,25883.0,0.81674612]
[1693586430523,0.4175,25884.0,25883.0,0.81674612]
[1693586430722,0.4375,25884.0,25883.0,0.81674612]
[1693586430926,1.74873745,25884.0,25883.0,0.81674612]
[1693586431421,2.64873745,25884.0,25883.0,0.81674612]
[1693586431623,0.4175,25882.0,25880.0,1.86775563]
[1693586431815,0.52873745,25881.0,25880.0,1.86775563]
[1693586432130,0.78563745,25881.0,25880.0,1.86775563]
[1693586432425,0.80563745,25881.0,25880.0,1.86775563]
[1693586432824,0.80563745,25881.0,25880.0,1.86820764]
[1693586433518,0.82263745,25881.0,25880.0,1.86920764]
[1693586433716,0.84063745,25881.0,25880.0,1.87020764]
[1693586436122,0.84063745,25881.0,25880.0,0.40020764]
[1693586436123,2.34063745,25881.0,25880.0,0.40020764]
[1693586436324,1.2,25878.0,25876.0,1.97888509]
[1693586436527,0.52873745,25877.0,25876.0,1.97888509]
[1693586436826,0.54873745,25877.0,25876.0,1.97888509]
[1693586437823,0.84873745,25877.0,25876.0,1.97888509]
[1693586438121,0.88473745,25877.0,25876.0,1.97888509]
[1693586438828,0.92073745,25877.0,25876.0,1.97888509]
[1693586439720,1.19803745,25877.0,25876.0,1.97888509]
[1693586442221,1.19803745,25877.0,25876.0,0.50888509]
[1693586442825,0.4175,25875.0,25869.0,0.34098823]
[1693586443023,0.4175,25870.0,25869.0,0.36098823]
[1693586443223,0.4175,25870.0,25869.0,0.40282438]
[1693586444321,0.3493,25877.0,25869.0,0.82032438]
[1693586444522,0.3493,25877.0,25875.0,0.4175]
[1693586444523,0.4175,25876.0,25875.0,0.4175]
[1693586444825,0.4175,25876.0,25875.0,0.4375]
[1693586445428,0.4175,25876.0,25875.0,0.47933615]
[1693586446129,0.4535,25876.0,25875.0,0.47933615]
[1693586447030,0.7135,25876.0,25875.0,0.06183615]
[1693586447226,0.7495,25876.0,25875.0,0.06183615]
[1693586448727,0.332,25876.0,25875.0,0.47933615]
[1693586449131,0.27394624,25876.0,25875.0,0.47933615]
[1693586451135,0.072,25876.0,25875.0,0.47933615]
[1693586451337,0.3,25882.0,25875.0,0.47933615]
[1693586451642,0.4175,25883.0,25881.0,0.4175]
[1693586451830,0.4175,25883.0,25882.0,0.04183615]
[1693586452330,0.037,25882.0,25881.0,0.4175]
[1693586453327,0.037,25882.0,25881.0,0.45933615]
[1693586453926,0.037,25882.0,25881.0,0.46233615]
[1693586454424,0.09354838,25882.0,25881.0,0.4205]
[1693586454626,0.13054838,25882.0,25881.0,0.4235]
[1693586454827,0.074,25882.0,25881.0,0.4235]
[1693586455028,0.13054838,25882.0,25881.0,0.4235]
[1693586456335,0.074,25882.0,25881.0,0.4235]
[1693586456525,0.074,25882.0,25881.0,0.46533615]
[1693586456932,0.4915,25882.0,25881.0,0.04783615]
[1693586457231,0.54618907,25882.0,25881.0,0.006]
[1693586457531,0.98368907,25882.0,25881.0,0.006]
[1693586457733,1.04023745,25882.0,25881.0,0.006]
[1693586459142,1.34023745,25882.0,25881.0,0.006]
[1693586461839,1.5,25878.0,25872.0,0.0769615]
[1693586462041,0.4175,25873.0,25871.0,0.0769615]
[1693586462234,0.47404838,25872.0,25870.0,0.3249615]
[1693586462438,0.4175,25871.0,25870.0,0.3249615]
[1693586462835,0.47404838,25871.0,25870.0,0.3249615]
[1693586463838,0.47704838,25871.0,25870.0,0.3549615]
[1693586464342,0.47704838,25871.0,25870.0,0.278]
[1693586464534,0.51004838,25871.0,25870.0,0.251]
[1693586464935,0.51004838,25871.0,25870.0,0.003]
[1693586465131,0.56604838,25871.0,25870.0,0.006]
[1693586465347,1.80073745,25871.0,25870.0,0.006]
[1693586465646,1.82073745,25871.0,25870.0,0.006]
[1693586468848,0.4175,25867.0,25865.0,0.07696406]
[1693586469142,1.67404838,25866.0,25865.0,0.07696406]
[1693586469344,1.89574838,25866.0,25865.0,0.07696406]
[1693586469543,1.95043745,25866.0,25864.0,0.07696406]
[1693586469745,0.4175,25865.0,25863.0,0.11544225]
[1693586470056,1.4217,25866.0,25865.0,0.003]
[1693586470244,1.91574838,25866.0,25865.0,0.003]
[1693586470633,1.97043745,25866.0,25865.0,0.003]
[1693586470839,1.97043745,25866.0,25865.0,0.001]
[1693586471946,1.97143745,25866.0,25865.0,0.005]
[1693586472349,1.8392,25866.0,25864.0,0.07695223]
[1693586472544,1.4447,25866.0,25865.0,0.003]
[1693586472843,0.6872,25866.0,25865.0,0.04783615]
[1693586473348,0.6872,25866.0,25865.0,0.04483615]
[1693586473349,0.6622,25866.0,25865.0,0.04483615]
[1693586473544,0.6872,25866.0,25865.0,0.04183615]
[1693586474147,0.6872,25866.0,25865.0,0.04483615]
[1693586474451,0.6872,25866.0,25865.0,0.06483615]
[1693586475045,0.7175,25871.0,25866.0,0.02942895]
[1693586475251,0.7175,25871.0,25869.0,0.4175]
[1693586475440,0.7175,25871.0,25870.0,0.04183615]
[1693586476239,0.7545,25871.0,25870.0,0.04183615]
[1693586476639,0.7915,25871.0,25870.0,0.04183615]
[1693586477160,0.7915,25871.0,25870.0,0.04483615]
[1693586477354,0.9934,25871.0,25870.0,0.04483615]
[1693586478047,0.9934,25871.0,25870.0,0.04783615]
[1693586478242,1.2282,25871.0,25870.0,0.04783615]
[1693586482759,0.074,25871.0,25870.0,0.06783615]
[1693586483651,0.074,25871.0,25870.0,0.14179562]
[1693586483952,0.074,25871.0,25870.0,0.14479562]
[1693586485657,0.037,25871.0,25870.0,0.14179562]
[1693586485842,0.074,25871.0,25870.0,0.14479562]
[1693586486253,0.074,25871.0,25870.0,0.06783615]
[1693586488154,0.037,25871.0,25870.0,0.06483615]
[1693586488354,0.074,25871.0,25870.0,0.06783615]
[1693586490249,0.037,25871.0,25870.0,0.06483615]
[1693586490551,0.074,25871.0,25870.0,0.04783615]
[1693586490745,0.074,25871.0,25870.0,0.06483615]
[1693586490948,0.074,25871.0,25870.0,0.06783615]
[1693586491354,0.037,25871.0,25870.0,0.06483615]
[1693586491555,0.074,25871.0,25870.0,0.06783615]
[1693586491954,0.037,25871.0,25870.0,0.06483615]
[1693586492260,0.074,25871.0,25870.0,0.06783615]
[1693586492844,0.074,25871.0,25870.0,0.04783615]
[1693586493048,0.074,25871.0,25870.0,0.06783615]
[1693586493456,0.76994838,25871.0,25870.0,0.006]
[1693586493844,0.82463745,25871.0,25870.0,0.006]
[1693586494050,0.78763745,25871.0,25870.0,0.003]
[1693586494249,0.82463745,25871.0,25870.0,0.006]
[1693586494644,0.82463745,25871.0,25870.0,0.003]
[1693586494855,0.82463745,25871.0,25870.0,0.006]
[1693586497745,1.31715753,25871.0,25870.0,0.006]
[1693586498157,1.12463745,25871.0,25870.0,0.006]
[1693586500063,1.84792419,25867.0,25864.0,0.2560959]
[1693586500248,0.6194,25865.0,25864.0,0.2560959]
[1693586500650,0.6394,25865.0,25864.0,0.2560959]
[1693586500848,0.69594838,25865.0,25864.0,0.2560959]
[1693586501458,0.69794838,25865.0,25864.0,0.2780959]
[1693586501961,0.67794838,25865.0,25864.0,0.2790959]
[1693586502163,0.69794838,25865.0,25864.0,0.2790959]
[1693586502460,0.4402,25865.0,25864.0,0.2780959]
[1693586502663,0.4422,25865.0,25864.0,0.2980959]
[1693586502960,0.4422,25865.0,25864.0,0.33993205]
[1693586504257,0.4222,25865.0,25864.0,0.33993205]
[1693586504562,0.4422,25865.0,25864.0,0.41693886]
[1693586504966,0.47874838,25865.0,25864.0,0.37510271]
[1693586505761,0.4222,25865.0,25864.0,0.37510271]
[1693586505967,0.48261838,25865.0,25864.0,0.2980959]
[1693586506153,0.47874838,25865.0,25864.0,0.2980959]
[1693586506662,0.48261838,25865.0,25864.0,0.2980959]
[1693586507170,0.47874838,25865.0,25864.0,0.2980959]
[1693586507564,0.48261838,25865.0,25864.0,0.2980959]
[1693586507759,0.42607,25865.0,25864.0,0.2980959]
[1693586507965,0.00787,25865.0,25864.0,0.33993205]
[1693586509064,0.42607,25865.0,25864.0,0.33993205]
[1693586509855,0.4222,25865.0,25864.0,0.33993205]
[1693586511072,0.55343745,25865.0,25864.0,0.2980959]
[1693586512664,1.15343745,25865.0,25864.0,0.2980959]
[1693586513859,1.15443745,25865.0,25864.0,0.2570959]
[1693586514061,1.16043745,25865.0,25864.0,0.2580959]
[1693586514561,1.16043745,25865.0,25864.0,0.257957]
[1693586517362,1.35344958,25865.0,25864.0,0.257957]
[1693586517866,1.16043745,25865.0,25864.0,0.257957]
[1693586518365,1.35344958,25865.0,25864.0,0.257957]
[1693586518965,1.24221213,25865.0,25864.0,0.257957]
[1693586519168,1.0292,25865.0,25864.0,0.257957]
[1693586520070,1.14043745,25865.0,25864.0,0.257957]
[1693586520274,1.0292,25865.0,25864.0,0.257957]
[1693586520863,1.0292,25865.0,25864.0,0.29979315]
[1693586521866,0.4292,25865.0,25864.0,0.31979315]
[1693586522672,0.4292,25865.0,25864.0,0.277957]
[1693586523267,0.4292,25865.0,25864.0,0.257957]
[1693586523268,1.6292,25865.0,25864.0,0.257957]
[1693586523577,1.74043745,25865.0,25864.0,0.257957]
[1693586524467,1.76043745,25865.0,25864.0,0.257957]
[1693586524667,1.76043745,25865.0,25862.0,0.00057994]
[1693586524668,0.6,25863.0,25862.0,0.00057994]
[1693586524975,1.17905119,25863.0,25862.0,0.00057994]
[1693586526771,1.18805119,25863.0,25862.0,0.00257994]
[1693586526971,2.38805119,25863.0,25862.0,0.00257994]
[1693586527163,2.58087846,25863.0,25862.0,0.00257994]
[1693586529172,2.38805119,25863.0,25862.0,0.00257994]
[1693586530974,2.38805119,25863.0,25862.0,0.002]
[1693586531178,1.20387,25856.0,25854.0,0.1806]
[1693586531379,0.52943745,25855.0,25854.0,0.2006]
[1693586531681,0.71113745,25855.0,25850.0,0.4182]
[1693586531875,0.4182,25851.0,25850.0,0.6286]
[1693586532074,0.4182,25851.0,25850.0,0.49432957]
[1693586533374,0.4212,25851.0,25850.0,0.48549342]
[1693586533774,0.53243745,25851.0,25850.0,0.48549342]
[1693586533980,0.47774838,25851.0,25850.0,0.48549342]
[1693586534281,0.48074838,25851.0,25850.0,0.2804]
[1693586534972,0.53543745,25851.0,25850.0,0.2604]
[1693586535176,0.53543745,25851.0,25850.0,0.2804]
[1693586535374,0.71753745,25851.0,25850.0,0.2804]
[1693586535884,0.6063,25851.0,25850.0,0.32223615]
[1693586536279,0.54819405,25851.0,25850.0,0.39939262]
[1693586536482,0.55019405,25851.0,25850.0,0.39939262]
[1693586536678,0.6614315,25851.0,25850.0,0.39939262]
[1693586536883,0.60674243,25851.0,25850.0,0.35755647]
[1693586537083,0.60674243,25851.0,25850.0,0.33755647]
[1693586537289,0.6614315,25851.0,25850.0,0.2604]
[1693586537482,0.6853015,25851.0,25850.0,0.2604]
[1693586538778,0.6653015,25851.0,25850.0,0.2604]
[1693586538981,0.6653015,25851.0,25850.0,0.07]
[1693586539176,0.6653015,25851.0,25850.0,0.11183615]
[1693586539177,0.60875312,25851.0,25850.0,0.11183615]
[1693586539378,0.60875312,25851.0,25850.0,0.07]
[1693586539977,0.6853015,25851.0,25850.0,0.07]
[1693586540580,1.20387,25849.0,25848.0,0.26395647]
[1693586540783,0.00387,25848.0,25847.0,0.07715647]
[1693586540983,0.42207,25848.0,25846.0,0.07715647]
[1693586541185,0.71640745,25847.0,25846.0,0.07715647]
[1693586541381,0.56485843,25847.0,25845.0,0.26455647]
[1693586541591,0.09011005,25847.0,25846.0,0.07715647]
[1693586541793,0.6195475,25847.0,25846.0,0.07715647]
[1693586542085,0.6195475,25847.0,25845.0,0.26455647]
[1693586542287,0.52943745,25846.0,25845.0,0.26455647]
[1693586542487,0.4182,25846.0,25845.0,0.22923615]
[1693586542682,0.4182,25846.0,25845.0,0.30624471]
[1693586543190,0.34071396,25846.0,25845.0,0.34497085]
[1693586543488,0.34371396,25846.0,25845.0,0.34497085]
[1693586543885,0.003,25846.0,25845.0,0.78317085]
[1693586544080,0.001,25847.0,25846.0,0.05083615]
[1693586544285,0.4182,25850.0,25846.0,0.4472]
[1693586544495,0.4182,25850.0,25848.0,0.49517977]
[1693586544690,0.4182,25850.0,25848.0,0.51517977]
[1693586545191,0.00058026,25853.0,25849.0,0.04183615]
[1693586545498,0.4182,25850.0,25849.0,0.02]
[1693586545796,0.4182,25850.0,25849.0,0.06183615]
[1693586545981,0.4542,25850.0,25849.0,0.06183615]
[1693586546383,0.4182,25850.0,25849.0,0.06183615]
[1693586546586,0.4542,25850.0,25849.0,0.06383615]
[1693586546990,0.4542,25850.0,25849.0,0.06183615]
[1693586547186,0.4542,25850.0,25849.0,0.06383615]
[1693586547391,0.6919,25850.0,25849.0,0.04383615]
[1693586547587,0.6919,25850.0,25849.0,0.06383615]
[1693586547792,30.6919,25850.0,25849.0,0.06383615]
[1693586548594,30.072,25850.0,25849.0,0.76071592]
[1693586548794,29.7745,25850.0,25849.0,0.68373615]
[1693586549000,29.7745,25850.0,25849.0,0.7992058]
[1693586551196,29.7745,25850.0,25849.0,0.68373615]
[1693586551495,30.3944,25850.0,25849.0,0.022]
[1693586551703,30.3944,25850.0,25849.0,0.002]
[1693586551890,30.50563745,25850.0,25849.0,0.002]
[1693586553402,30.52563745,25850.0,25849.0,0.002]
[1693586553794,30.52950745,25850.0,25849.0,0.002]
[1693586555106,31.72950745,25850.0,25849.0,0.002]
[1693586555305,30.52950745,25850.0,25849.0,0.002]
[1693586556307,30.50950745,25850.0,25849.0,0.002]
[1693586556606,30.52950745,25850.0,25849.0,0.002]
[1693586559302,30.50950745,25850.0,25849.0,0.002]
[1693586559501,30.52950745,25850.0,25849.0,0.002]
[1693586559901,30.41827,25850.0,25849.0,0.002]
[1693586560608,30.47481838,25850.0,25849.0,0.002]
[1693586561002,30.52563745,25850.0,25849.0,0.002]
[1693586561206,29.7745,25850.0,25849.0,0.09897511]
[1693586561411,29.7745,25850.0,25849.0,0.71887511]
[1693586561607,29.7745,25850.0,25849.0,0.76071126]
[1693586562408,29.77440849,25850.0,25849.0,0.76071126]
[1693586563911,29.77440849,25850.0,25849.0,0.7992058]
[1693586564321,29.77440849,25850.0,25849.0,0.68373615]
[1693586564611,28.99610397,25850.0,25849.0,1.67478448]
[1693586564915,28.77830397,25850.0,25849.0,2.44704208]
[1693586566016,28.77830397,25850.0,25849.0,2.05974208]
[1693586566409,28.77830397,25850.0,25849.0,2.21402583]
[1693586566801,28.77830397,25850.0,25849.0,1.95779489]
[1693586567712,28.77830397,25850.0,25849.0,1.80351114]
[1693586568210,28.77830397,25850.0,25849.0,2.21400631]
[1693586568411,28.77830397,25850.0,25849.0,3.71669823]
[1693586568713,28.77830397,25850.0,25849.0,2.60130631]
[1693586569109,28.77830397,25850.0,25849.0,2.60129302]
[1693586569814,28.77830397,25850.0,25849.0,2.19081114]
[1693586570013,28.77830397,25850.0,25849.0,2.30658996]